Cogmind - Beta 15 @@@ ROGUE MODE // 2025.06.07 @ 22:57:47 // Winter2022/Polymind Player: Epsilon 11 Result: Destroyed by S-27 Virus with Autogun Performance ------------- Evolutions (4) 2000 Regions Visited (9) 1800 Robots Destroyed (12) 60 Value Destroyed (705) 705 Prototype IDs (17) 340 Alien Tech Used (0) 0 Bonus (5602) 5602 TOTAL SCORE: 10227 Bonus ------- Polymind Skill 3970 Pacifist 200 Follower Combat Kills 432 Entered Garrisons 200 Used RIF Installer 500 Registered with UFD 300 Cogmind --------- Core Integrity 0/850 Matter 436/450 Energy 1100/1100 System Corruption 0% Temperature Cool (0) Movement Walking (90) Location -6/Garrison Parts ------- > --- POWER (2) -------- Micro Fission Core Hybrid Antimatter Reactor > --- PROPULSION (3) --- Advanced VSS Leg Advanced VSS Leg Advanced VSS Leg > --- UTILITY (6) ------ Advanced Cooling System Advanced Cooling System Matter Compressor Recoil Stabilizer Active Sensor Spoofer Improved Core Shielding > --- WEAPON (3) ------- Coil Gun Coil Gun Mass Driver > --- INVENTORY (1) ---- (None) Peak State ------------ > --- POWER ------------ Micro Fission Core Hybrid Antimatter Reactor > --- PROPULSION ------- Advanced VSS Leg Advanced VSS Leg Advanced VSS Leg > --- UTILITY ---------- Advanced Cooling System Advanced Cooling System Matter Compressor Recoil Stabilizer Active Sensor Spoofer Improved Core Shielding > --- WEAPON ----------- Coil Gun Coil Gun Mass Driver > --- INVENTORY -------- (None) [Rating: 82] Favorites ----------- Power Improved Ion Engine Engine Improved Ion Engine Power Core Micro Fission Core Reactor Hybrid Antimatter Reactor Propulsion Light Treads Treads Light Treads Leg Aluminum Leg Wheel Wheel Hover Unit Hover Unit Utility Heat Sink Device Heat Sink Storage Small Storage Unit Processor Visual Processing Unit Hackware Hacking Suite Protection Light Armor Plating Weapon Beam Rifle Energy Gun Beam Rifle Ballistic Gun Heavy Assault Rifle Ballistic Cannon Mass Driver Slashing Weapon Ripteeth Special Melee Weapon Datajack Build | -11 -10 -10 -9 -8 -8 -8 -8 -6 -6 ------- Run | Yrd Mat Min Mat Mat Sto Rec Scr Fac Gar Slots Evolved . | . . . . . . . . . . Power . | . . . . . . . . . . Propulsion . | . . . . . . . . . . Utility . | . . . . . . . . . . Weapon . | . . . . . . . . . . Parts Attached . | . . . . . . . . . . Power . | . . . . . . . . . . Engine . | . . . . . . . . . . Core . | . . . . . . . . . . Reactor . | . . . . . . . . . . Propulsion . | . . . . . . . . . . Treads . | . . . . . . . . . . Leg . | . . . . . . . . . . Wheel . | . . . . . . . . . . Hover . | . . . . . . . . . . Flight . | . . . . . . . . . . Utility . | . . . . . . . . . . Device . | . . . . . . . . . . Storage . | . . . . . . . . . . Processor . | . . . . . . . . . . Hackware . | . . . . . . . . . . Protection . | . . . . . . . . . . Artifact . | . . . . . . . . . . Weapon . | . . . . . . . . . . Energy Gun . | . . . . . . . . . . Energy Cannon . | . . . . . . . . . . Ballistic Gun . | . . . . . . . . . . Ballistic Cannon . | . . . . . . . . . . Launcher . | . . . . . . . . . . Special Weapon . | . . . . . . . . . . Impact Weapon . | . . . . . . . . . . Slashing Weapon . | . . . . . . . . . . Piercing Weapon . | . . . . . . . . . . Special Melee Weapon . | . . . . . . . . . . Unidentified Prototypes . | . . . . . . . . . . Parts Lost 15 | . . . 9 2 . . . 4 . Power 2 | . . . 2 . . . . . . Propulsion 8 | . . . 5 1 . . . 2 . Utility 1 | . . . 1 . . . . . . Weapon 4 | . . . 1 1 . . . 2 . Highest Loss Streak 4 | . . . 4 2 . . . 4 . To Critical Strikes . | . . . . . . . . . . Average Backups . | . . . . . . . . . . Power . | . . . . . . . . . . Propulsion . | . . . . . . . . . . Utility . | . . . . . . . . . . Weapon . | . . . . . . . . . . Tool/Special . | . . . . . . . . . . Unused Backups 1 | . . . . . . . . 1 . Power . | . . . . . . . . . . Propulsion . | . . . . . . . . . . Utility 1 | . . . . . . . . 1 . Weapon . | . . . . . . . . . . Tool/Special . | . . . . . . . . . . Average Slot Usage (%) 94 | . 73 100 79 96 100 100 100 62 87 Engine 11 | . 14 20 16 18 12 12 9 . . Treads 16 | . . . . 5 25 25 20 . . Leg 5 | . 29 40 25 . . . . . 18 Wheel 2 | . . . . . . . 5 17 . Hover 1 | . . . 6 28 . . . . . Device 21 | . 14 20 14 5 25 25 23 14 24 Storage 1 | . . . . . . . 2 14 6 Protection 8 | . . . . 2 12 12 9 . 6 Energy Gun 10 | . 14 20 11 2 12 12 9 . . Ballistic Gun 8 | . . . . 2 12 12 9 . 12 Slashing Weapon 2 | . . . . . . . 5 13 . Peak Build Rating 82 | . 5 5 7 11 11 11 15 15 82 Average Rating 13 | . 3 5 4 7 11 11 11 8 75 On Entrance 6 | . . 5 5 7 11 11 11 15 . Naked Turns 123 | . 41 . 44 1 . . 7 11 19 Heaviest Build 49 | . 7 7 7 18 18 18 18 15 49 Greatest Support 54 | 3 20 20 20 40 40 40 40 20 54 Greatest Overweight (x) 2 | . . . . . . . . 2 . Average Overweight (x) . | . . . . . . . . . . Largest Inventory Capacity 4 | . 1 1 1 1 1 1 4 4 1 Average Capacity 1 | . . 1 . . 1 1 1 3 . Most Carried 3 | . . . . . . . 3 3 . Average Carried . | . . . . . . . 1 2 . Final Capacity 4 | . 1 1 1 1 1 1 4 . 1 Final Carried 3 | . . . . . . . 3 . . Class Distribution -------------------- 65% | Sentry 13% | Grunt 7% | Bolteater 5% | Specialist 3% | Operator 3% | Cogmind Dominant Class ---------------- Grunt | -10/Materials Grunt | -10/Mines Grunt | -9/Materials Operator | -8/Materials Sentry | -8/Storage Sentry | -8/Recycling Sentry | -8/Scraptown Bolteater | -6/Factory Specialist | -6/Garrison Resources | -11 -10 -10 -9 -8 -8 -8 -8 -6 -6 ----------- Run | Yrd Mat Min Mat Mat Sto Rec Scr Fac Gar Matter Collected 122 | . . . . . 3 . . . 119 Remotely . | . . . . . . . . . . Salvage Created 460 | . . . 213 . . . . . 247 Parts 30 | . . . 17 . . . . . 13 Haulers Intercepted . | . . . . . . . . . . Recyclers Shooed . | . . . . . . . . . . Parts Field Recycled . | . . . . . . . . . . Retrieved Matter . | . . . . . . . . . . Parts Self-Destructed 2 | . . . . . . . 2 . . Prevented . | . . . . . . . . . . Kills | -11 -10 -10 -9 -8 -8 -8 -8 -6 -6 ------- Run | Yrd Mat Min Mat Mat Sto Rec Scr Fac Gar Combat Hostiles Destroyed 12 | . . . 9 . . . . . 3 Guns 12 | . . . 9 . . . . . 3 Classes Destroyed 5 | . . . 3 . . . . . 2 Swarmer 1 | . . . 1 . . . . . . Grunt 7 | . . . 6 . . . . . 1 Sentry 2 | . . . 2 . . . . . . Specialist 1 | . . . . . . . . . 1 Hunter 1 | . . . . . . . . . 1 Best Kill Streak 5 | . . . 5 . . . . . 1 Combat Bots Only 5 | . . . 5 . . . . . 1 Max Kills in Single Turn 1 | . . . 1 . . . . . 1 Gunslinging . | . . . . . . . . . . Exploded . | . . . . . . . . . . Melee . | . . . . . . . . . . Uniques/NPCs Destroyed . | . . . . . . . . . . Combat | -11 -10 -10 -9 -8 -8 -8 -8 -6 -6 -------- Run | Yrd Mat Min Mat Mat Sto Rec Scr Fac Gar Hostile Shots Fired 357 | . 19 . 140 11 . . . 140 47 Missed 137 | . 9 . 44 4 . . . 62 18 Hits 220 | . 10 . 96 7 . . . 78 29 Projectile 220 | . 10 . 96 7 . . . 78 29 Critical Strikes 3 | . . . 1 . . . . 1 1 Damage Taken 2763 | . 82 . 1067 110 . . . 1055 449 Core 1277 | . 20 . 346 53 . . . 824 34 Absorbed by Shields . | . . . . . . . . . . Redirected to Shielding 13 | . . . . . . . . . 13 Ignored by Resistances 191 | . . . . . . . . 191 . Core Remaining (%) 73 | 100 . 92 13 . . . 90 . . Volleys Fired 65 | . . . 54 . . . . . 11 Largest 3 | . . . 1 . . . . . 3 Hottest 107 | . . . 40 . . . . . 107 Shots Fired 79 | . . . 54 . . . . . 25 Gun 68 | . . . 54 . . . . . 14 Cannon 11 | . . . . . . . . . 11 Launcher . | . . . . . . . . . . Special . | . . . . . . . . . . Kinetic 25 | . . . . . . . . . 25 Thermal 54 | . . . 54 . . . . . . Explosive . | . . . . . . . . . . Electromagnetic . | . . . . . . . . . . Robot Hit Streak 11 | . . . 11 . . . . . 8 Robot Miss Streak 2 | . . . 2 . . . . . 2 Penetration Max . | . . . . . . . . . . Secondary Targets . | . . . . . . . . . . Shots Hit Robots 51 | . . . 39 1 . . 1 1 9 Core Hits 26 | . . . 21 . . . . . 5 Critical Kills 1 | . . . . . . . . . 1 Critical Parts Destroyed . | . . . . . . . . . . Critical Strikes 2 | . . . . . . . . . 2 Destroy 1 | . . . . . . . . . 1 Blast 1 | . . . . . . . . . 1 Melee Attacks 7 | . . . . 1 . . 1 5 . Impact . | . . . . . . . . . . Slashing 6 | . . . . . . . 1 5 . Piercing . | . . . . . . . . . . Sneak Attacks 2 | . . . . 1 . . 1 . . Combat Hostiles . | . . . . . . . . . . Follow-up Attacks . | . . . . . . . . . . Damage Inflicted 702 | . . . 461 2 . . 6 54 179 Guns 576 | . . . 453 . . . . . 123 Cannons 56 | . . . . . . . . . 56 Explosions . | . . . . . . . . . . Melee 9 | . . . . . . . 6 3 . Ramming 61 | . . . 8 2 . . . 51 . Kinetic 179 | . . . . . . . . . 179 Thermal 453 | . . . 453 . . . . . . Explosive . | . . . . . . . . . . Electromagnetic . | . . . . . . . . . . Impact . | . . . . . . . . . . Slashing 9 | . . . . . . . 6 3 . Piercing . | . . . . . . . . . . Highest Corruption 1 | . . . 1 . . . . . . Average Corruption 1 | . . . 1 . . . . . . Corruption Purged . | . . . . . . . . . . Corruption Blocked . | . . . . . . . . . . Effects 2 | . . . 2 . . . . . . Heat Flow Errors 2 | . . . 2 . . . . . . Overload Shots . | . . . . . . . . . . Overflow Damage . | . . . . . . . . . . Projectiles . | . . . . . . . . . . Explosions . | . . . . . . . . . . Melee . | . . . . . . . . . . Knockbacks . | . . . . . . . . . . Impact . | . . . . . . . . . . Kinetic . | . . . . . . . . . . Secondary . | . . . . . . . . . . Self-Inflicted Damage 53 | . . . 1 1 . . . 51 . Shots . | . . . . . . . . . . Rammed 2 | . . . 1 1 . . . . . Targets Rammed 8 | . . . 7 1 . . . . . Kicked 6 | . . . 6 . . . . . . Crushed . | . . . . . . . . . . Highest Temperature 245 | . . . 245 2 . . . 32 . Average Temperature 63 | . . . 66 2 . . . 15 . Received Heat Transfer 717 | . 6 . 369 36 . . . 288 18 Siege Activations . | . . . . . . . . . . Martial Activations . | . . . . . . . . . . Shielding Activations . | . . . . . . . . . . Robots Disrupted . | . . . . . . . . . . Combat Hostiles . | . . . . . . . . . . Robots Corrupted . | . . . . . . . . . . Combat Hostiles . | . . . . . . . . . . Parts Fried . | . . . . . . . . . . Impact Corruptions . | . . . . . . . . . . Robots Melted . | . . . . . . . . . . Combat Hostiles . | . . . . . . . . . . Parts Melted 2 | . . . 2 . . . . . . Heat Transferred 975 | . . . 975 . . . . . . Parts Sabotaged . | . . . . . . . . . . Parts Stolen . | . . . . . . . . . . Parts Stripped . | . . . . . . . . . . Power Chain Reactions . | . . . . . . . . . . Alert | -11 -10 -10 -9 -8 -8 -8 -8 -6 -6 ------- Run | Yrd Mat Min Mat Mat Sto Rec Scr Fac Gar Maximum Alert Level 1 | . . . . . 1 . . . 1 Low Security (%) 95 | 100 100 100 100 100 98 100 . 100 49 Level 1 4 | . . . . . 1 . . . 50 Level 2 . | . . . . . . . . . . Level 3 . | . . . . . . . . . . Level 4 . | . . . . . . . . . . Level 5 . | . . . . . . . . . . High Security . | . . . . . . . . . . Max Security . | . . . . . . . . . . Peak Influence 255 | . 30 . 155 82 204 76 . 70 255 Initial 49 | . . . . 48 24 22 . . 49 Average 61 | . 4 . 68 43 99 14 . 21 156 Influence Increases 1385 | . 47 . 295 104 429 186 . 91 233 Destroy 0b10 Robot/C 500 | . . . 180 . 200 . . 20 100 Destroy 0b10 Robot/NC 5 | . . . . . 5 . . . . Destroy Leader 112 | . . . 40 . 62 . . . 10 Allied During Kill 171 | . . . . . 162 . . . 9 Trap Triggered on 0b10 10 | . . . . . . . . 10 . Successful Hack 67 | . 17 . . 14 . 36 . . . Select Force Hacks 150 | . . . . . . 150 . . . Anti-Garrison Action 100 | . . . . . . . . . 100 Destroy Structure 15 | . . . . . . . . 1 14 Partial Spotted 15 | . . . 15 . . . . . . Lose Combat Pursuer 240 | . 30 . 60 90 . . . 60 . Influence Decreases 1130 | . 47 . 179 163 429 243 . 21 48 Entered New Map 157 | . . . . 68 33 35 . . 21 Time Decay 765 | . 44 . 128 70 336 166 . 21 . Lost Part 70 | . . . 50 20 . . . . . Lost Ally 80 | . . . . . 60 . . . 20 Purge Threat 42 | . . . . . . 42 . . . Miscellaneous 16 | . 3 . 1 5 . . . . 7 Squads Dispatched 8 | . 2 . 2 . 2 . . 2 . Investigation 2 | . . . 1 . 1 . . . . Extermination . | . . . . . . . . . . Reinforcement 6 | . 2 . 1 . 1 . . 2 . Assault . | . . . . . . . . . . Garrison . | . . . . . . . . . . Intercept . | . . . . . . . . . . Searches Triggered . | . . . . . . . . . . Construction Impeded . | . . . . . . . . . . Haulers Reinforced 1 | . . . . . . . . 1 . Active Scanning Responses . | . . . . . . . . . . Cargo Convoy Interrupts . | . . . . . . . . . . Stealth | -11 -10 -10 -9 -8 -8 -8 -8 -6 -6 --------- Run | Yrd Mat Min Mat Mat Sto Rec Scr Fac Gar Distress Signals 6 | . 1 . 2 1 . . . 2 . Communications Jammed . | . . . . . . . . . . Distress Signals . | . . . . . . . . . . Times Spotted 78 | . 10 . 35 7 . . . 17 9 Peak Tracking Total 11 | . 7 . 7 8 . . . 11 5 Tactical Retreats 6 | . 1 . 2 2 . . . 1 . Traps | -11 -10 -10 -9 -8 -8 -8 -8 -6 -6 ------- Run | Yrd Mat Min Mat Mat Sto Rec Scr Fac Gar Traps Triggered 1 | . . . . . . . . 1 . Indirectly . | . . . . . . . . . . Trap Hack Attempts . | . . . . . . . . . . Triggered . | . . . . . . . . . . Disarmed . | . . . . . . . . . . Reprogrammed . | . . . . . . . . . . Reused 1 | . . . . . . . . 1 . Traps Extracted . | . . . . . . . . . . Installed 1 | . . . . . . . . 1 . Triggered 1 | . . . . . . . . 1 . Most Traps Carried 2 | . . . . . . . 2 2 . Machines | -11 -10 -10 -9 -8 -8 -8 -8 -6 -6 ---------- Run | Yrd Mat Min Mat Mat Sto Rec Scr Fac Gar Machines Disabled 1 | . . . . . . . . . 1 Max in Single Turn 1 | . . . . . . . . . 1 Garrison Relay 1 | . . . . . . . . . 1 Machines Repaired . | . . . . . . . . . . Machines Dismantled . | . . . . . . . . . . Machines Sabotaged . | . . . . . . . . . . Overloaded Fab Kills . | . . . . . . . . . . Hacking | -11 -10 -10 -9 -8 -8 -8 -8 -6 -6 --------- Run | Yrd Mat Min Mat Mat Sto Rec Scr Fac Gar Machines Accessed 26 | . 4 . 2 3 1 12 1 1 2 Terminals 17 | . 4 . 1 3 1 6 . . 2 Fabricators . | . . . . . . . . . . Repair Stations 1 | . . . 1 . . . . . . Recycling Units 6 | . . . . . . 6 . . . Scanalyzers . | . . . . . . . . . . Garrison Access 1 | . . . . . . . . 1 . Total Hacks 70 | . 10 . 6 14 2 31 1 3 3 Successful 38 | . 7 . 1 7 . 20 1 1 1 Failed 31 | . 3 . 5 7 2 10 . 2 2 Catastrophic 4 | . 1 . 1 . 1 . . . 1 Database Lockouts 1 | . . . . . . 1 . . . Manual 51 | . 9 . 3 13 1 25 . . . Terminals 55 | . 10 . 3 14 2 23 . . 3 Fabricators . | . . . . . . . . . . Repair Stations 3 | . . . 3 . . . . . . Recycling Units 8 | . . . . . . 8 . . . Scanalyzers . | . . . . . . . . . . Garrison Access 3 | . . . . . . . . 3 . Terminal Hacks 13 | . 2 . . 2 . 7 1 . 1 Record 1 | . . . . . . 1 . . . Robot Analysis 1 | . . . . . . 1 . . . Prototype ID Bank 2 | . . . . . . 2 . . . Level Access Points 1 | . . . . 1 . . . . . Branch Access Points 1 | . . . . 1 . . . . . Emergency Access Points 1 | . . . . . . . . . 1 Terminal Index 2 | . 1 . . . . 1 . . . Recycling Unit Index 1 | . . . . . . 1 . . . Unreport Threat 1 | . . . . . . 1 . . . Locate Traps 1 | . 1 . . . . . . . . Proto ID Catalog 1 | . . . . . . . 1 . . Fabricator Hacks . | . . . . . . . . . . Repair Station Hacks . | . . . . . . . . . . Recycling Unit Hacks . | . . . . . . . . . . Scanalyzer . | . . . . . . . . . . Garrison Access Hacks 1 | . . . . . . . . 1 . Unlock Access 1 | . . . . . . . . 1 . Unauthorized Hacks 24 | . 5 . 1 5 . 13 . . . Terminals 19 | . 5 . 1 5 . 8 . . . Botnet 6 | . 2 . . 2 . 2 . . . Skim 13 | . 3 . 1 3 . 6 . . . Fabricators . | . . . . . . . . . . Repair Stations . | . . . . . . . . . . Recycling Units 5 | . . . . . . 5 . . . Tunnel 5 | . . . . . . 5 . . . Scanalyzers . | . . . . . . . . . . Garrison Access . | . . . . . . . . . . Data Cores Recovered . | . . . . . . . . . . Used . | . . . . . . . . . . Hacking Detections 20 | . 4 . 2 3 1 7 . 1 2 Full Trace Events 5 | . . . 1 . 1 2 . . 1 Feedback Events 1 | . . . 1 . . . . . . Corruption 1 | . . . 1 . . . . . . Feedback Blocked . | . . . . . . . . . . Robot Schematics Acquired . | . . . . . . . . . . Robots Built . | . . . . . . . . . . Authchips . | . . . . . . . . . . Time . | . . . . . . . . . . Total Robot Build Rating . | . . . . . . . . . . Part Schematics Acquired . | . . . . . . . . . . Parts Built . | . . . . . . . . . . Authchips . | . . . . . . . . . . Time . | . . . . . . . . . . Total Part Build Rating . | . . . . . . . . . . Parts Repaired . | . . . . . . . . . . Time . | . . . . . . . . . . Parts Recycled . | . . . . . . . . . . Recycled Matter . | . . . . . . . . . . Retrieved Matter . | . . . . . . . . . . Retrieved Components . | . . . . . . . . . . Parts Scanalyzed . | . . . . . . . . . . Part Schematics Acquired . | . . . . . . . . . . Parts Damaged . | . . . . . . . . . . Bothacking | -11 -10 -10 -9 -8 -8 -8 -8 -6 -6 ------------ Run | Yrd Mat Min Mat Mat Sto Rec Scr Fac Gar Used RIF Installer 1 | . . . . . . . . . 1 Robots Hacked 5 | . 1 . 3 1 . . . . . Non-combat 2 | . . . 2 . . . . . . Combat 3 | . 1 . 1 1 . . . . . Robot Hacks Applied 7 | . 1 . 4 2 . . . . . find_terminals 1 | . . . 1 . . . . . . map_route 1 | . . . 1 . . . . . . mark_security 1 | . . . 1 . . . . . . find_shortcuts 3 | . 1 . 1 1 . . . . . find_garrison 1 | . . . . 1 . . . . . Relay Couplers Released 3 | . . . . . . . . . 3 Machine Destruction 3 | . . . . . . . . . 3 Fabnet Peak Effective % . | . . . . . . . . . . Robots Rewired . | . . . . . . . . . . Allies Hacked . | . . . . . . . . . . Hacks Repelled . | . . . . . . . . . . Allies | -11 -10 -10 -9 -8 -8 -8 -8 -6 -6 -------- Run | Yrd Mat Min Mat Mat Sto Rec Scr Fac Gar Total Allies 12 | . . . . . 10 . . . 2 Largest Group 10 | . . . . . 10 5 5 5 2 Highest-Rated Group 173 | . . . . . 173 93 93 93 157 Highest-Rated Ally 95 | . . . . . 29 29 29 29 95 Total Orders . | . . . . . . . . . . Ally Attacks 88 | . . . . . 66 . 1 14 7 Total Damage 1199 | . . . . . 862 . 13 139 185 Kills 16 | . . . . . 13 . . 1 2 Allies Corrupted . | . . . . . . . . . . Allies Melted . | . . . . . . . . . . Intel | -11 -10 -10 -9 -8 -8 -8 -8 -6 -6 ------- Run | Yrd Mat Min Mat Mat Sto Rec Scr Fac Gar Active Infowar (turns) 258 | . . . 46 . . . . . 212 Optics 46 | . . . 46 . . . . . . Spoofing 212 | . . . . . . . . . 212 Robot Analysis Total 7 | . 1 . 2 1 . 1 1 . 1 Derelict Logs Recovered 1 | . . 1 . . . . . . . Drone Launches . | . . . . . . . . . . Drone Recoveries . | . . . . . . . . . . Exploration | -11 -10 -10 -9 -8 -8 -8 -8 -6 -6 ------------- Run | Yrd Mat Min Mat Mat Sto Rec Scr Fac Gar Turns Passed 3903 | 9 185 71 404 145 832 749 1166 111 231 Spaces Moved 2605 | 18 150 60 334 221 174 292 963 168 225 Core 222 | 18 29 . 85 1 . . 11 43 35 Treads 1077 | . . . . 17 174 292 594 . . Legs 512 | . 121 60 141 . . . . . 190 Wheels 483 | . . . . . . . 358 125 . Hover 311 | . . . 108 203 . . . . . Flight . | . . . . . . . . . . Fastest Speed 45 | 50 50 120 50 50 160 160 45 45 50 Average Speed 107 | 50 106 120 81 64 160 160 115 60 83 Slowest Speed 160 | 50 120 120 120 160 160 160 160 150 90 Overloaded Moves . | . . . . . . . . . . Propulsion Burnouts . | . . . . . . . . . . Robots Hopped . | . . . . . . . . . . Potential Cave-ins . | . . . . . . . . . . Cave-ins Triggered . | . . . . . . . . . . Exploration Rate (%) 34 | 3 39 34 29 34 44 63 63 6 28 Regions Visited 9 Branch Regions 4 Pre-discovered Areas 5 | . . . . . . 5 . . . Known Exits Taken 2 | . . . . 1 . . . 1 . Unknown Exits Taken 7 | 1 1 1 1 . 1 1 1 . . Scrap Searched 3 | . . . . . . . 3 . . Spaces Dug . | . . . . . . . . . . Terrain Destroyed 5 | . . . . . . . . . 5 Melee . | . . . . . . . . . . Projectile 5 | . . . . . . . . . 5 AOE . | . . . . . . . . . . Terrain Rammed 2 | . . . . . . . . 2 . Walls Destroyed 1 | . . . . . . . . 1 . Machines Disabled . | . . . . . . . . . . Actions | -11 -10 -10 -9 -8 -8 -8 -8 -6 -6 --------- Run | Yrd Mat Min Mat Mat Sto Rec Scr Fac Gar Total 3618 | 17 175 59 408 222 728 574 1011 177 247 Wait 931 | . 26 . 14 . 555 283 42 . 11 Move 2597 | 17 149 59 333 220 173 291 962 168 225 Hop . | . . . . . . . . . . Pick Up 5 | . . . . . . . 5 . . Fast Attach . | . . . . . . . . . . Attach . | . . . . . . . . . . Detach . | . . . . . . . . . . Swap . | . . . . . . . . . . Drop 2 | . . . . . . . 1 1 . Fire 65 | . . . 54 . . . . . 11 Melee 7 | . . . . 1 . . 1 5 . Ram 4 | . . . 1 1 . . . 2 . Kick 6 | . . . 6 . . . . . . Crush . | . . . . . . . . . . Escape Stasis . | . . . . . . . . . . Rewire . | . . . . . . . . . . Trap 1 | . . . . . . . . 1 . Miscellaneous . | . . . . . . . . . . Route ------- -11/Scrapyard -10/Materials -10/Mines -9/Materials -8/Materials (discovered 4 exits: *Fac x3 / *Sto) -8/Storage -8/Recycling (discovered 2 exits: *Fac / *Scr) -8/Scraptown -6/Factory (discovered 3 exits: Low x2 / Gar) -6/Garrison History --------- Turn | Location | Event 3 | -11/Scrapyard | Discovered new exit (range 15) 10 | -11/Scrapyard | Entered Materials 178 | -10/Materials | Discovered new exit (range 13) 195 | -10/Materials | Entered Mines 198 | -10/Mines | Learned Materials stockpile data 230 | -10/Mines | Discovered new exit (range 14) 237 | -10/Mines | Received a Rocket Launcher from a helpful Derelict 266 | -10/Mines | Entered Materials 448 | -9/Materials | Lost 4 parts (1p2n1w) 465 | -9/Materials | Core integrity fell below 50% 594 | -9/Materials | Lost 4 parts (1p2n1u) 602 | -9/Materials | Core integrity fell below 20% 666 | -9/Materials | Discovered new exit (range 8) 670 | -9/Materials | Entered another Materials area 700 | -8/Materials | Identified exit to Storage 725 | -8/Materials | Identified exit to Factory 815 | -8/Materials | Entered Storage 921 | -8/Storage | Assisted by bots powering up and referring to "LRC-V3" 1641 | -8/Storage | Used back door to open Recycling access 1641 | -8/Storage | Discovered new exit (range 5) 1647 | -8/Storage | Entered Recycling 1647 | -8/Recycling | Accompanied by 5 allies 2014 | -8/Recycling | Discovered new exit (range 15) 2071 | -8/Recycling | Learned Factory emergency access door positions 2073 | -8/Recycling | Scanned before Scraplab entrance 2105 | -8/Recycling | Entered Scraplab 2126 | -8/Recycling | Discovered new exit (range 3) 2138 | -8/Recycling | Learned 2 Lower Caves zone layouts 2279 | -8/Recycling | Learned Storage non-interactive machine intel 2324 | -8/Recycling | Learned location of 1 exit from Recycling 2381 | -8/Recycling | Learned location of 1 exit from Lower Caves 2396 | -8/Recycling | Entered Scraptown 2396 | -8/Scraptown | Accompanied by 5 allies 2621 | -8/Scraptown | Visited Shadow of the Wyrm 2631 | -8/Scraptown | Visited Symbiants 2647 | -8/Scraptown | Visited Cyclists 2679 | -8/Scraptown | Visited Awakened 2716 | -8/Scraptown | Visited Assassins FH 2730 | -8/Scraptown | Visited CPS Storage 2783 | -8/Scraptown | Visited UFD Registry 2783 | -8/Scraptown | Registered with UFD as "Fibernuts" 2818 | -8/Scraptown | Visited Science Guys 2881 | -8/Scraptown | Visited Junk Repository 2921 | -8/Scraptown | Visited Junk Repository 3127 | -8/Scraptown | Visited Infowarlord's Domain 3151 | -8/Scraptown | Visited Observation Area 3165 | -8/Scraptown | Visited Scrapoid Research Area 3189 | -8/Scraptown | Visited DA-N13 Charitable Foundation 3218 | -8/Scraptown | Visited Chapter 10 3275 | -8/Scraptown | Visited Modified Component R&D 3396 | -8/Scraptown | Visited A0-MCA Data Center 3439 | -8/Scraptown | Found DCF Scrap (29 items) 3477 | -8/Scraptown | Discovered new exit (range 3) 3562 | -8/Scraptown | Entered Factory 3562 | -6/Factory | Accompanied by 5 allies 3563 | -6/Factory | Identified exit to Lower Caves 3606 | -6/Factory | Spotted B-75 Beast 3655 | -6/Factory | Lost 4 parts (2n2w) 3666 | -6/Factory | Core integrity fell below 50% 3670 | -6/Factory | Core integrity fell below 20% 3673 | -6/Factory | Identified exit to Garrison 3673 | -6/Factory | Entered Garrison 3689 | -6/Garrison | Found embedded Infiltrators 3713 | -6/Garrison | Triggered checkpoint 3744 | -6/Garrison | Installed Relay Interface Framework 3776 | -6/Garrison | Garrison Relay disabled 3904 | -6/Garrison | Destroyed by S-27 Virus with Autogun Last Messages --------------- 03819_ Slug penetrates D2-W3X(x). 03824_ D2-W3X(x) destroyed. 03828_ Acquired 30 Protomatter. 03828_ Penetrated by Slug. 03829_ Slug penetrates H-66 Slayer. 03831_ Slug penetrates Wall. 03832_ Slug penetrates H-66 Slayer. 03835_ Slug penetrates Wall. 03838_ Slug penetrates H-66 Slayer. 03839_ Penetrated by Slug. 03842_ Slug penetrates H-66 Slayer. 03842_ H-66 Slayer destroyed. 03854_ Acquired 75 matter. 03857_ Slug penetrates Wall. 03885_ Connecting with Garrison Terminal... >>Access(Emergency) Found 64 emergency access points. Map updated. Garrison Door activated. 03899_ Slug penetrates Wall. Map ----- +----------------------------------------------------+ | ????+?????????????????# [=* [!!=% | | ????+?????????????????# !! ] *[%%! | | ??????????????????????# ####+####!=####"""+#### | | ??????????????????????# ????????# #??## # #??# | | ??????????????????????# +???????# #???### #??# | | ??????????????????????# ????????# #?????# #??### | | ????????????????####??# ????????# #?????# #????? | | ????????????????# ?#^ ????????# #?????#"#????? | | ????????+??##++## ## ##??????# #?????]]]????? | | +?????????? #####+## ###### ]#??? | | ??????????? s + ^ #??? | | ??????????? h ###### ]#??? | | ???????????? ???# ##ss ######T####????#]]]]#??? | | ???????????# ## ## ###??###???????######??? | | ???????????" #????????????????????? | | ???????????" s #????????????????????? | | ???????????" #????????????????????? | | ???????????" +????????????????????? | | ???????????# ## ## ###????????????????????? | | ???????????# ## ## #??????????????????????? | | ???????????+ #??????????????????????? | | ???????????+ #??????????????????????? | | ???????????# #??????????????????????? | | ???????????# ##""""## #??????????????????????? | | ??????????????????????# +?????????????????+????? | | ?????????????????+????# x#??????????????????????? | | ??????????????????????# #??????????????????????? | | ???????????+???+??????# #??????????????????????? | | ??????????????????????# #??????????????????????? | | ??????????????????????# #??+?????????????+?????? | | ???++?????????????????# ??????????????????????? | | ??????????????????????# ??????????????????????? | | ??????????????????????# ??????????????????????? | | ??????????????????????##+##??++?????+????????????? | | ?????????????????????????????????????????????????? | | ?????????????????????????????????????????????????? | | ?????????????????????????????++?????+????????????? | | ?????????????????????????????????????????????????? | | ????????????????????????????+????????????????????? | | ?????????????????????????????????????????????????? | | ?????????????????????????????????????????????????? | | ???????????????????????????????????????+?????????? | | ?????????????????????????????????????????????????? | | ?????????????????????????????????????????????????? | | ???????????????????????????????????????+?????????? | | ?????????????????????????????????????????????????? | | ?????????????????????????????????????????????????? | | ?????????????????????????????????????????????????? | | ?????????????????????????????????????????????????? | | ?????????????????????????????????????????????????? | +----------------------------------------------------+ Best States ------------- Heat Dissipation 102 Energy Generation 38 Energy Capacity 1100 Matter Stores 450 Matter Capacity 450 Sight Range 18 Terrain Scan Density 10 Armor Coverage 150 Resistance: KI 25 Resistance: TH 25 Resistance: EX 50 Resistance: EM 25 Resistance: I 25 Core Shielding 30 Evasion (%) 57 Recoil Reduction 4 Offensive Hacking 10 Authchip Count 1 Item Schematics ----------------- None Robot Schematics ------------------ None Fabricated ------------ Nothing Repaired ---------- Nothing Alien Tech Used ----------------- None Achievements -------------- None Challenges ------------ None Polymind | -11 -10 -10 -9 -8 -8 -8 -8 -6 -6 ---------- Run | Yrd Mat Min Mat Mat Sto Rec Scr Fac Gar Hosts 7 | . 1 . 3 1 . . 1 . 1 Combat Hostiles 3 | . 1 . 1 1 . . . . . Allies 2 | . . . . . . . 1 . 1 Unique Host Classes 6 | . 1 . 2 1 . . 1 . 1 Average Host Suspicion 43 | . 38 11 84 67 43 73 . 84 76 Unsuspicious Activity 621 | . 7 . 7 46 546 . 1 . 14 Returns to Shadow . | . . . . . . . . . . Fuzzy Dispatches . | . . . . . . . . . . Protomatter Created 269 | . . . 64 . 135 . 12 28 30 Used 101 | . 15 . 32 23 . . 3 . 28 Decayed 13 | . . . 13 . . . . . . Highest Spend 28 | . 15 . 15 23 . . 3 . 28 Top 5 Hosts by Kills: G-34 Mercenary (-9/Materials: 9) 17-7JZ(x) (-6/Garrison: 3) Game ------ Seed GammaProjectionTorch Manual? 0 Play Time 00:43:39 Cumulative 352.2 hours Start 2025.06.07 @ 22:10:07 End 2025.06.07 @ 22:57:47 Sessions 1 Manual Loads 0 Difficulty Rogue Special Mode Winter2022/Polymind Game No. 166 Rogue 123 Adventurer 43 Explorer 0 Win Type - Total 7 Types 4/0/1/0/0/0/0/1/0/1 Lore% 85 Gallery% 74 Achievement% 66 Wizard Run 0 Options --------- Layout 0 ASCII 0 Keyboard 0 Movement Numpad Keybinds 0 Fullscreen 1 Font 24/Smallcaps Map View 76x50 Zoom Use 0% Tactical HUD 1 Map Filters NONE Filters NONE Steam 1 RUN: 6153bc5e-a90e-4318-b628-7659f5b19fe8